Cogmind - Beta 12 @@@ ROGUE MODE // 2023.03.07 @ 11:34:52 Player: Inkie Result: Destroyed by G-47 Trooper with Particle Gun Performance ------------- Evolutions (2) 1000 Regions Visited (7) 1400 Robots Destroyed (82) 410 Value Destroyed (3393) 3393 Prototype IDs (3) 60 Alien Tech Used (0) 0 Bonus (564) 564 TOTAL SCORE: 6827 Bonus ------- High Alert Combat Kills 545 Follower Combat Kills 102 Entered Garrisons 200 Friendly Fire -283 Cogmind --------- Core Integrity 0/550 Matter 18/300 Energy 265/265 System Corruption 0% Temperature Cool (29) Movement Treading (240) Ox1 Location -8/Materials Parts ------- > --- POWER (1) -------- Reinforced Ion Engine > --- PROPULSION (4) --- Light Treads Light Treads Light Treads Light Treads > --- UTILITY (4) ------ Heat Sink Huge Storage Unit Advanced Targeting Computer Hardened Light Armor Plating > --- WEAPON (2) ------- Mini Grenade Launcher Mini Grenade Launcher > --- INVENTORY (25) --- Reinforced Ion Engine Light Treads Wheel Improved Flight Unit Improved VTOL Module High-capacity Matter Pod (200) Trap Scanner Improved Terrain Scanner Improved Terrain Scan Processor Improved Targeting Computer Advanced Targeting Computer Light Armor Plating Hacking Suite Hacking Suite System Restoration Module Advanced Beam Rifle Advanced Beam Rifle Particle Cannon Heavy Particle Cannon Ion Cannon Minigun Rocket Launcher Heavy Mace Peak State ------------ > --- POWER ------------ Reinforced Ion Engine > --- PROPULSION ------- Light Treads Light Treads Light Treads Improved VTOL Module > --- UTILITY ---------- Heat Sink High-capacity Storage Unit Advanced Targeting Computer System Restoration Module > --- WEAPON ----------- Advanced Beam Rifle Advanced Beam Rifle > --- INVENTORY -------- Reinforced Ion Engine Wheel Improved Flight Unit High-capacity Matter Pod Trap Scanner Improved Terrain Scanner Improved Terrain Scan Processor Improved Targeting Computer Advanced Targeting Computer Light Armor Plating Hacking Suite Hacking Suite Particle Gun Particle Cannon Ion Cannon Minigun Rocket Launcher Mini Grenade Launcher Mini Grenade Launcher Heavy Mace [Rating: 30] Favorites ----------- Power Ion Engine Engine Ion Engine Power Core Nuclear Core Propulsion Light Treads Treads Light Treads Leg Titanium Leg Wheel Compact Wheel Flight Unit Improved VTOL Module Utility High-capacity Storage Unit Device Heat Sink Storage High-capacity Storage Unit Processor Advanced Targeting Computer Protection Light Armor Plating Weapon Particle Cannon Energy Gun Medium Laser Energy Cannon Particle Cannon Ballistic Gun Assault Rifle Launcher Mini Grenade Launcher Impact Weapon Heavy Mace Build | -11 -10 -10 -10 -9 -8 -8 -8 ------- Run | Jun Mat Min Exi Min Mat Gar Mat Slots Evolved 4 | . . . . . 4 . . Power . | . . . . . . . . Propulsion 2 | . . . . . 2 . . Utility 2 | . . . . . 2 . . Weapon . | . . . . . . . . Parts Attached 80 | 7 3 8 . 6 14 17 25 Power 10 | 2 . 1 . 2 2 2 1 Engine 8 | 2 . 1 . 1 1 2 1 Core 2 | . . . . 1 1 . . Reactor . | . . . . . . . . Propulsion 31 | 2 . 4 . 3 6 7 9 Treads 16 | 2 . 1 . . . 7 6 Leg 5 | . . . . . 5 . . Wheel 8 | . . 3 . 3 1 . 1 Hover . | . . . . . . . . Flight 2 | . . . . . . . 2 Utility 14 | 1 2 . . 1 1 6 3 Device 6 | . 1 . . 1 1 2 1 Storage 3 | 1 1 . . . . . 1 Processor 1 | . . . . . . 1 . Hackware . | . . . . . . . . Protection 4 | . . . . . . 3 1 Artifact . | . . . . . . . . Weapon 25 | 2 1 3 . . 5 2 12 Energy Gun 11 | 1 1 1 . . 3 . 5 Energy Cannon 5 | . . 2 . . 1 1 1 Ballistic Gun 1 | 1 . . . . . . . Ballistic Cannon . | . . . . . . . . Launcher 7 | . . . . . 1 1 5 Special Weapon . | . . . . . . . . Impact Weapon 1 | . . . . . . . 1 Slashing Weapon . | . . . . . . . . Piercing Weapon . | . . . . . . . . Special Melee Weapon . | . . . . . . . . Unidentified Prototypes 3 | . . . . . . . 3 Parts Lost 22 | . 1 3 . 1 5 8 4 Power 4 | . . 1 . . 1 1 1 Propulsion 8 | . . 1 . . 1 3 3 Utility 4 | . . . . . 1 3 . Weapon 6 | . 1 1 . 1 2 1 . Highest Loss Streak 3 | . 1 2 . 1 2 3 2 To Critical Strikes . | . . . . . . . . Average Slot Usage (%) 91 | . 97 97 85 93 76 94 89 Engine 7 | . 14 11 . 1 1 8 6 Core 1 | . . . . 5 7 . . Treads 19 | . 28 25 . . . 26 28 Leg 4 | . . . . . 28 6 . Wheel 4 | . . 2 28 28 2 . . Device 12 | . 11 14 14 14 13 9 12 Storage 11 | . 14 14 14 14 9 9 9 Processor 3 | . . . . . . 7 9 Protection 2 | . . . . . . 7 3 Energy Gun 5 | . 14 2 . . 5 . 5 Energy Cannon 10 | . . 22 28 28 7 8 5 Ballistic Gun 3 | . 14 2 . . . . . Launcher 3 | . . . . . . 8 5 Naked Turns . | . . . . . . . . Heaviest Build 100 | 14 50 54 49 59 55 59 100 Greatest Support 80 | 40 40 40 26 26 68 80 80 Greatest Overweight (x) 4 | . 1 4 1 2 3 1 2 Average Overweight (x) . | . . 1 1 1 . . . Largest Inventory Capacity 25 | 8 20 20 20 20 20 20 25 Average Capacity 19 | 7 19 20 20 20 20 20 21 Most Carried 23 | 2 16 20 20 20 20 20 23 Average Carried 16 | 1 7 16 20 19 18 19 19 Final Capacity 25 | 8 20 20 20 20 20 20 25 Final Carried 23 | 2 16 20 20 20 19 18 23 Class Distribution -------------------- 63% | Mutant 34% | Scavenger-Mutant Dominant Class ---------------- Mutant | -10/Materials Mutant | -10/Mines Mutant | -10/Exiles Mutant | -9/Mines Mutant | -8/Materials Scavenger-Mutant | -8/Garrison Scavenger-Mutant | -8/Materials Resources | -11 -10 -10 -10 -9 -8 -8 -8 ----------- Run | Jun Mat Min Exi Min Mat Gar Mat Matter Collected 1518 | 214 252 229 . 60 185 303 275 Remotely . | . . . . . . . . Salvage Created 2455 | . 266 322 . 114 474 691 588 Parts 126 | . 28 14 . 4 13 40 27 Haulers Intercepted 1 | . . . . . . . 1 Recyclers Shooed . | . . . . . . . . Parts Field Recycled . | . . . . . . . . Retrieved Matter . | . . . . . . . . Parts Self-Destructed . | . . . . . . . . Prevented . | . . . . . . . . Kills | -11 -10 -10 -10 -9 -8 -8 -8 ------- Run | Jun Mat Min Exi Min Mat Gar Mat Combat Hostiles Destroyed 78 | . 10 13 . 4 10 24 17 Melee 2 | . . . . . . . 2 Guns 22 | . 10 6 . . 4 . 2 Cannons 19 | . . 7 . 4 3 4 1 AOE 33 | . . . . . 3 19 11 Classes Destroyed 11 | . 3 1 . 1 2 1 3 Builder 1 | . . . . . . . 1 Hauler 1 | . . . . . . . 1 Recycler 1 | . . . . . 1 . . Operator 3 | . 1 . . . 1 . 1 Watcher 1 | . . . . . . . 1 Swarmer 23 | . 6 6 . . 1 7 3 Grunt 37 | . 4 4 . 1 8 10 10 Brawler 6 | . . . . . . 6 . Duelist 3 | . . . . 1 . . 2 Sentry 6 | . . . . . 1 3 2 Assembled 5 | . . 3 . 2 . . . Best Kill Streak 7 | . 3 3 . 3 6 7 6 Combat Bots Only 7 | . 3 3 . 3 6 7 5 Max Kills in Single Turn 3 | . 2 2 . 1 1 3 3 Gunslinging 1 | . 1 1 . . . . . Exploded 2 | . . . . . 1 2 2 Melee 1 | . . . . . . . 1 Uniques/NPCs Destroyed . | . . . . . . . . Combat | -11 -10 -10 -10 -9 -8 -8 -8 -------- Run | Jun Mat Min Exi Min Mat Gar Mat Damage Taken 3980 | . 381 392 . 308 808 1148 943 Core 742 | . 25 89 . 68 95 230 235 Absorbed by Shields . | . . . . . . . . Core Remaining (%) 63 | 100 . . . 27 . . . Volleys Fired 221 | . 32 26 . 13 46 71 33 Largest 2 | . 2 2 . 2 2 2 2 Hottest 136 | . 70 136 . 136 118 118 133 Shots Fired 333 | . 63 51 . 26 73 72 48 Gun 143 | . 63 27 . . 43 1 9 Cannon 133 | . . 24 . 26 23 43 17 Launcher 57 | . . . . . 7 28 22 Special . | . . . . . . . . Kinetic 45 | . 32 13 . . . . . Thermal 197 | . 16 38 . 26 47 44 26 Explosive 57 | . . . . . 7 28 22 Electromagnetic 34 | . 15 . . . 19 . . Robot Hit Streak 13 | . 7 8 . 5 10 13 8 Robot Miss Streak 5 | . 4 4 . 5 3 3 2 Penetration Max . | . . . . . . . . Secondary Targets 6 | . 2 2 . . 2 . . Max Gunslinging Chain 1 | . 1 1 . . 1 . . Shots Hit Robots 189 | . 37 30 . 10 49 31 32 Core Hits 146 | . 17 15 . 5 26 41 42 Critical Kills 1 | . . . . . . 1 . Critical Parts Destroyed 1 | . . . . . . . 1 Critical Strikes 6 | . 1 . . . 2 1 2 Burn 2 | . 1 . . . 1 . . Meltdown 1 | . . . . . . 1 . Corrupt 1 | . . . . . 1 . . Smash 2 | . . . . . . . 2 Melee Attacks 9 | . . . . . . . 9 Impact 9 | . . . . . . . 9 Slashing . | . . . . . . . . Piercing . | . . . . . . . . Sneak Attacks . | . . . . . . . . Combat Hostiles . | . . . . . . . . Follow-up Attacks . | . . . . . . . . Damage Inflicted 6433 | . 471 524 . 207 1092 2234 1905 Guns 1178 | . 471 193 . . 382 12 120 Cannons 1518 | . . 331 . 204 388 310 285 Explosions 3431 | . . . . . 322 1912 1197 Melee 303 | . . . . . . . 303 Ramming 3 | . . . . 3 . . . Kinetic 362 | . 282 80 . . . . . Thermal 2099 | . 102 444 . 204 622 322 405 Explosive 3348 | . . . . . 275 1912 1161 Electromagnetic 318 | . 87 . . . 195 . 36 Impact 303 | . . . . . . . 303 Slashing . | . . . . . . . . Piercing . | . . . . . . . . Highest Corruption 4 | . . . . 4 . . . Average Corruption 4 | . . . . 4 . . . Corruption Purged . | . . . . . . . . Corruption Blocked . | . . . . . . . . Overload Shots . | . . . . . . . . Overflow Damage 255 | . . 2 . . 10 55 188 Projectiles 12 | . . 2 . . 10 . . Explosions 149 | . . . . . . 55 94 Melee 94 | . . . . . . . 94 Knockbacks 2 | . . . . . . . 2 Impact 2 | . . . . . . . 2 Kinetic . | . . . . . . . . Secondary . | . . . . . . . . Self-Inflicted Damage 537 | . . . . 1 31 414 91 Shots 21 | . . . . . 1 15 5 Rammed 1 | . . . . 1 . . . Targets Rammed 1 | . . . . 1 . . . Kicked . | . . . . . . . . Crushed . | . . . . . . . . Highest Temperature 216 | . 36 210 . 168 216 149 123 Average Temperature 42 | . 16 59 . 64 41 41 31 Received Heat Transfer 1311 | . 123 87 . 30 477 225 369 Siege Activations . | . . . . . . . . Robots Corrupted . | . . . . . . . . Combat Hostiles . | . . . . . . . . Parts Fried . | . . . . . . . . Impact Corruptions 3 | . . . . . . . 3 Robots Melted 1 | . . . . . . 1 . Combat Hostiles 1 | . . . . . . 1 . Parts Melted 6 | . 1 1 . 1 3 . . Heat Transferred 4339 | . 370 925 . 370 1382 552 740 Parts Sabotaged . | . . . . . . . . Parts Stolen . | . . . . . . . . Parts Stripped . | . . . . . . . . Power Chain Reactions 1 | . . . . . 1 . . Missiles Intercepted . | . . . . . . . . Alert | -11 -10 -10 -10 -9 -8 -8 -8 ------- Run | Jun Mat Min Exi Min Mat Gar Mat Peak Influence 1338 | . 238 215 . 50 309 1338 1004 Initial 651 | . . . . . 7 100 651 Average 332 | . 59 130 . 6 110 681 776 Maximum Alert Level 4 | . 1 1 . . 1 4 3 Low Security (%) 53 | 100 96 52 . 100 89 3 . Level 1 11 | . 3 47 . . 10 18 . Level 2 11 | . . . . . . 30 27 Level 3 20 | . . . . . . 38 72 Level 4 2 | . . . . . . 9 . Level 5 . | . . . . . . . . High Security . | . . . . . . . . Max Security . | . . . . . . . . Squads Dispatched 9 | . 1 . . . 1 . 7 Investigation . | . . . . . . . . Extermination . | . . . . . . . . Reinforcement 5 | . 1 . . . 1 . 3 Assault 1 | . . . . . . . 1 Garrison 3 | . . . . . . . 3 Intercept . | . . . . . . . . Searches Triggered . | . . . . . . . . Construction Impeded 1 | . . . . . . . 1 Haulers Reinforced . | . . . . . . . . Active Scanning Responses . | . . . . . . . . Cargo Convoy Interrupts . | . . . . . . . . Stealth | -11 -10 -10 -10 -9 -8 -8 -8 --------- Run | Jun Mat Min Exi Min Mat Gar Mat Distress Signals 2 | . . . . . 1 . 1 Communications Jammed . | . . . . . . . . Distress Signals . | . . . . . . . . Times Spotted 123 | . 24 12 . 6 17 33 31 Peak Tracking Total 8 | . 4 4 . 2 7 8 6 Tactical Retreats 7 | . 1 3 . . 1 2 . Traps | -11 -10 -10 -10 -9 -8 -8 -8 ------- Run | Jun Mat Min Exi Min Mat Gar Mat Traps Triggered 3 | . . . . . . 3 . Indirectly . | . . . . . . . . Trap Hack Attempts . | . . . . . . . . Triggered . | . . . . . . . . Disarmed . | . . . . . . . . Reprogrammed . | . . . . . . . . Reused . | . . . . . . . . Traps Extracted . | . . . . . . . . Installed . | . . . . . . . . Triggered . | . . . . . . . . Machines | -11 -10 -10 -10 -9 -8 -8 -8 ---------- Run | Jun Mat Min Exi Min Mat Gar Mat Machines Disabled 11 | . . . . 1 2 6 2 Max in Single Turn 2 | . . . . 1 1 2 1 Garrison Relay 3 | . . . . . . 3 . Phase Generator 1 | . . . . . . 1 . Machines Repaired . | . . . . . . . . Machines Sabotaged . | . . . . . . . . Overloaded Fab Kills . | . . . . . . . . Hacking | -11 -10 -10 -10 -9 -8 -8 -8 --------- Run | Jun Mat Min Exi Min Mat Gar Mat Machines Accessed 15 | . 6 1 1 . 3 3 1 Terminals 12 | . 6 1 . . 2 3 . Fabricators . | . . . . . . . . Repair Stations . | . . . . . . . . Recycling Units . | . . . . . . . . Scanalyzers . | . . . . . . . . Garrison Access 2 | . . . . . 1 . 1 Total Hacks 35 | . 15 2 1 . 6 7 4 Successful 11 | . 3 1 1 . 3 3 . Failed 24 | . 12 1 . . 3 4 4 Catastrophic 4 | . 2 . . . . 2 . Database Lockouts . | . . . . . . . . Manual 11 | . 6 . . . 3 2 . Terminals 29 | . 15 2 . . 5 7 . Fabricators . | . . . . . . . . Repair Stations . | . . . . . . . . Recycling Units . | . . . . . . . . Scanalyzers . | . . . . . . . . Garrison Access 5 | . . . . . 1 . 4 Terminal Hacks 7 | . 2 1 1 . 1 2 . Record 2 | . 1 . 1 . . . . Part Schematic 1 | . 1 . . . . . . Branch Access Points 1 | . . . . . 1 . . Emergency Access Points 1 | . . . . . . 1 . Zone Layout 1 | . . 1 . . . . . Security Stations 1 | . . . . . . 1 . Fabricator Hacks . | . . . . . . . . Repair Station Hacks . | . . . . . . . . Recycling Unit Hacks . | . . . . . . . . Scanalyzer . | . . . . . . . . Garrison Access Hacks 1 | . . . . . 1 . . Unlock Access 1 | . . . . . 1 . . Unauthorized Hacks 3 | . 1 . . . 1 1 . Terminals 3 | . 1 . . . 1 1 . Botnet 1 | . . . . . 1 . . Operators 1 | . 1 . . . . . . Override 1 | . . . . . . 1 . Fabricators . | . . . . . . . . Repair Stations . | . . . . . . . . Recycling Units . | . . . . . . . . Scanalyzers . | . . . . . . . . Garrison Access . | . . . . . . . . Data Cores Recovered . | . . . . . . . . Used . | . . . . . . . . Hacking Detections 13 | . 6 1 . . 3 2 1 Full Trace Events . | . . . . . . . . Feedback Events . | . . . . . . . . Feedback Blocked . | . . . . . . . . Robot Schematics Acquired . | . . . . . . . . Robots Built . | . . . . . . . . Authchips . | . . . . . . . . Time . | . . . . . . . . Total Robot Build Rating . | . . . . . . . . Part Schematics Acquired 1 | . 1 . . . . . . Parts Built . | . . . . . . . . Authchips . | . . . . . . . . Time . | . . . . . . . . Total Part Build Rating . | . . . . . . . . Parts Repaired . | . . . . . . . . Time . | . . . . . . . . Parts Recycled . | . . . . . . . . Recycled Matter . | . . . . . . . . Retrieved Matter . | . . . . . . . . Retrieved Components . | . . . . . . . . Parts Scanalyzed . | . . . . . . . . Part Schematics Acquired . | . . . . . . . . Parts Damaged . | . . . . . . . . Bothacking | -11 -10 -10 -10 -9 -8 -8 -8 ------------ Run | Jun Mat Min Exi Min Mat Gar Mat Used RIF Installer . | . . . . . . . . Robots Hacked . | . . . . . . . . Non-combat . | . . . . . . . . Combat . | . . . . . . . . Robot Hacks Applied . | . . . . . . . . Relay Couplers Released 9 | . . . . . . 9 . Machine Destruction 9 | . . . . . . 9 . Fabnet Peak Effective % . | . . . . . . . . Robots Rewired 6 | . . . . . . 6 . Allies Hacked . | . . . . . . . . Hacks Repelled . | . . . . . . . . Allies | -11 -10 -10 -10 -9 -8 -8 -8 -------- Run | Jun Mat Min Exi Min Mat Gar Mat Total Allies 12 | . . 1 . 5 . 6 . Largest Group 6 | . . 1 1 3 1 6 . Highest-Rated Group 60 | . . 31 31 49 16 60 . Highest-Rated Ally 31 | . . 31 31 31 16 10 . Total Orders . | . . . . . . . . Ally Attacks 48 | . . . . 4 16 28 . Total Damage 646 | . . . . 59 183 404 . Kills 11 | . . . . 1 4 6 . Allies Corrupted . | . . . . . . . . Allies Melted . | . . . . . . . . Intel | -11 -10 -10 -10 -9 -8 -8 -8 ------- Run | Jun Mat Min Exi Min Mat Gar Mat Robot Analysis Total . | . . . . . . . . Derelict Logs Recovered 1 | . . . . 1 . . . Drone Launches . | . . . . . . . . Drone Recoveries . | . . . . . . . . Exploration | -11 -10 -10 -10 -9 -8 -8 -8 ------------- Run | Jun Mat Min Exi Min Mat Gar Mat Turns Passed 5354 | 81 1211 575 192 604 606 1265 820 Spaces Moved 2360 | 46 452 221 183 229 298 594 337 Core 3 | 3 . . . . . . . Treads 1568 | 43 452 173 . . . 563 337 Legs 259 | . . . . . 228 31 . Wheels 530 | . . 48 183 229 70 . . Hover . | . . . . . . . . Flight . | . . . . . . . . Fastest Speed 50 | 50 160 105 105 105 108 120 160 Average Speed 173 | 152 231 212 105 119 140 167 191 Slowest Speed 340 | 160 240 320 105 120 340 240 320 Overloaded Moves . | . . . . . . . . Propulsion Burnouts . | . . . . . . . . Robots Hopped . | . . . . . . . . Cave-ins Triggered . | . . . . . . . . Exploration Rate (%) 44 | 5 63 55 53 55 29 69 30 Regions Visited 7 Branch Regions 3 Pre-discovered Areas 1 | . . . 1 . . . . Known Exits Taken 1 | . . . . . 1 . . Unknown Exits Taken 5 | 1 1 1 1 1 . . . Scrap Searched 1 | . . . . 1 . . . Spaces Dug 34 | . . . . . 6 12 16 Terrain Destroyed 403 | . . . . . 40 279 84 Melee . | . . . . . . . . Projectile 1 | . . . . . . 1 . AOE 402 | . . . . . 40 278 84 Terrain Rammed . | . . . . . . . . Walls Destroyed . | . . . . . . . . Machines Disabled . | . . . . . . . . Actions | -11 -10 -10 -10 -9 -8 -8 -8 --------- Run | Jun Mat Min Exi Min Mat Gar Mat Total 3246 | 53 556 273 182 534 409 796 443 Wait 472 | . 54 15 . 282 46 54 21 Move 2354 | 45 451 220 182 228 298 593 337 Hop . | . . . . . . . . Pick Up 38 | 1 15 4 . . 2 8 8 Fast Attach 34 | 6 2 1 . 1 7 9 8 Attach 15 | . 1 2 . 1 4 4 3 Detach 4 | . . . . . . . 4 Swap 31 | 1 . 5 . 4 3 4 14 Drop 26 | . 1 . . 4 3 12 6 Fire 221 | . 32 26 . 13 46 71 33 Melee 9 | . . . . . . . 9 Ram 1 | . . . . 1 . . . Kick . | . . . . . . . . Crush . | . . . . . . . . Escape Stasis . | . . . . . . . . Rewire 41 | . . . . . . 41 . Trap . | . . . . . . . . Miscellaneous . | . . . . . . . . Route ------- -11/Junkyard -10/Materials (discovered 2 exits: [*Mat] / *Min) -10/Mines (discovered 3 exits: [*Mat x2] / *Exi) -10/Exiles (discovered 2 exits: [*Min x2]) -9/Mines -8/Materials (discovered 2 exits: [*Fac] / Gar) -8/Garrison (discovered 3 exits: *Mat x3) -8/Materials (discovered 1 exit: [*Fac]) History --------- Turn | Location | Event 8 | -11/Junkyard | Discovered new exit (range 16) 82 | -11/Junkyard | Entered Materials 318 | -10/Materials | Build established: Mutant 557 | -10/Materials | Discovered new exit (range 15) 923 | -10/Materials | Discovered new exit (range 13) 1293 | -10/Materials | Entered Mines 1431 | -10/Mines | Discovered new exit (range 7) 1763 | -10/Mines | Excavation squad dispatched 1763 | -10/Mines | A large section of the Mines collapsed 1815 | -10/Mines | Discovered new exit (range 12) 1822 | -10/Mines | Received a Rocket Launcher from a helpful Derelict 1843 | -10/Mines | Received a Mining Laser from a helpful Derelict 1864 | -10/Mines | Deemed a non-threat by the Exiles lab entrance 1864 | -10/Mines | Discovered new exit (range 5) 1868 | -10/Mines | Entered Exiles 1868 | -10/Exiles | Accompanied by 1 ally 1884 | -10/Exiles | Discovered new exit (range 15) 1897 | -10/Exiles | Met 8R-AWN 1913 | -10/Exiles | Met EX-HEX 1960 | -10/Exiles | Met EX-DEC 2020 | -10/Exiles | Learned location of Zion (-6) 2050 | -10/Exiles | Discovered new exit (range 11) 2060 | -10/Exiles | Entered Mines 2061 | -9/Mines | Assembled infested the area 2066 | -9/Mines | Assisted by a Guerilla fighting off Assembled 2355 | -9/Mines | Learned Materials emergency access door positions 2369 | -9/Mines | Core integrity fell below 50% 2506 | -9/Mines | Assisted by bots powering up and referring to "LRC-V3" 2657 | -9/Mines | Discovered new exit (range 6) 2664 | -9/Mines | Entered Materials 2664 | -8/Materials | Accompanied by 1 ally 2664 | -8/Materials | Evolved 4 slots: Propulsion x2, Utility x2 2846 | -8/Materials | Discovered new exit (range 5) 3270 | -8/Materials | Identified exit to Garrison 3270 | -8/Materials | Entered Garrison 3345 | -8/Garrison | Lost 3 parts (1p1n1u) 3348 | -8/Garrison | Destroyed 7 combat bots 3529 | -8/Garrison | Garrison Relay disabled 3678 | -8/Garrison | Triggered checkpoint 3702 | -8/Garrison | Triggered checkpoint 3730 | -8/Garrison | Triggered checkpoint 3930 | -8/Garrison | Triggered checkpoint 4040 | -8/Garrison | Build established: Scavenger-Mutant 4047 | -8/Garrison | Core integrity fell below 50% 4061 | -8/Garrison | Learned Materials security intel 4085 | -8/Garrison | Discovered new exit (range 11) 4150 | -8/Garrison | Triggered checkpoint 4187 | -8/Garrison | Garrison Relay disabled 4248 | -8/Garrison | Triggered checkpoint 4330 | -8/Garrison | Phase Generator disabled 4390 | -8/Garrison | Discovered new exit (range 3) 4420 | -8/Garrison | Identified exit to Materials 4484 | -8/Garrison | Garrison Relay disabled 4535 | -8/Garrison | Entered Materials 4669 | -8/Materials | Core integrity fell below 20% 5079 | -8/Materials | Garrison activated, responded to threat 5335 | -8/Materials | First assault squad dispatched 5348 | -8/Materials | Discovered new exit (range 8) 5355 | -8/Materials | Destroyed by G-47 Trooper with Particle Gun Last Messages --------------- 05272_ S-10 Pest destroyed. 05275_ Destroyed Flight Unit. 05275_ S-10 Pest destroyed. 05275_ Y-45 Defender destroyed. 05275_ W-25 Informer destroyed. 05278_ The unstable cave ceiling collapses. 05286_ Y-45 Defender destroyed. 05290_ The unstable cave ceiling collapses. 05316_ Acquired 60 matter. 05335_ ALERT: Significant disruption in Zone 6G, assault force dispatched. 05336_ C-30 ARC bursts open, deploying its payload. 05336_ L-31 Rogue unfolds itself. 05336_ G-47 Trooper unfolds itself. 05336_ M-28 Smith unfolds itself. 05336_ Processing Tank disabled. 05337_ The unstable cave ceiling collapses. 05342_ L-31 Rogue destroyed. 05348_ EXIT=FOUND 05353_ Critical hit (Burn: +37). 05355_ M-28 Smith repairs Lgt. Angular Momentum Engine. Map ----- +----------------------------------------------------+ | ???# ##### #????????????????? | | ???# #???? #????????????????? | | ???# #?????#????????????????? | | ???# #??????????????????????? | | ???# #??????????????????????? | | ???# #??????????????????????? | | ???# #?###+#####????????????? | | ???# #? #????????????? | | ???# # ! #????????????? | | ???# # #????????????? | | ???# #????????????? | | ???# #????????????? | | ???# #????????????? | | ???# #????????????? | | ??## #????????????? | | ??# # ##+#####????????????? | | ??## *#[ ####???????????? | | ??## !%! ???????????? | | ??# # ???????????? | | ??## # ???????????? | | ???# ###????????????? | | ??##+ # # # ##??????????????? | | ??# # #???????????????? | | ??#""" = ^#???????????????? | | ??#""" b=g % #???????????????? | | ??#""" @ gm #??????????????? | | ??#""" < ????????? | | ??#"" # ????????? | | ??# # #??????????????? | | ?# #? ##??????????????? | | ?## ! #??##???????????????? | | ??#####+####???????????????????? | | ???????????????????????????????? | | ???????????????????????????????? | | ???????????????????????????????? | | ???????????????????????????????? | | ???????????????????????????????? | | ???????????????????????????????? | | ???????????????????????????????? | | ???????????????????????????????? | | ???????????????????????????????? | | ???????????????????????????????? | | ???????????????????????????????? | | ???????????????????????????????? | | ???????????????????????????????? | | ???????????????????????????????? | | ???????????????????????????????? | | | | | | | +----------------------------------------------------+ Best States ------------- Heat Dissipation 51 Energy Generation 18 Energy Capacity 310 Matter Stores 300 Matter Capacity 300 Sight Range 16 Robot Scan Range 15 Terrain Scan Density 10 Armor Coverage 300 Evasion (%) 55 Targeting Accuracy 8 Recoil Reduction 4 Item Schematics ----------------- Huge Storage Unit | -10/Materials | Hacked Robot Schematics ------------------ None Fabricated ------------ Nothing Alien Tech Used ----------------- None Achievements -------------- None Challenges ------------ None Game ------ Seed SpliceBehemothEngine Manual? 0 Play Time 00:31:08 Cumulative 408.9 hours Start 2023.03.07 @ 11:04:10 End 2023.03.07 @ 11:34:52 Sessions 1 Manual Loads 0 Difficulty Rogue Special Mode None Game No. 443 Rogue 434 Adventurer 8 Explorer 1 Win Type - Total 6 Types 3/1/2/0/0/0/0/0/0 Lore% 78 Gallery% 89 Achievement% 71 Wizard Run 0 Options --------- ASCII 0 Keyboard 0 Movement Numpad Keybinds 1 Fullscreen 2 Font 18/Terminus Map View 76x50 Tactical HUD 1 Map Filters NONE Filters NONE Steam 1 RUN: 48c121c2-a49a-4609-8a83-148eba58c2ba